[Event "ESP-ch Teams Honor 2024"]
[Site "Melilla"]
[Date "2024.10.15"]
[Round "4.24"]
[White "Valera Raga, Jesus Alberto"]
[Black "Garrido Outon, Alex"]
[Result "1-0"]
[ECO "A60"]
[WhiteElo "2088"]
[BlackElo "2448"]
[Annotator "TA"]
[PlyCount "63"]
[EventDate "2024.10.11"]
[EventType "team-tourn"]
[EventCountry "ESP"]
[SourceTitle "playchess.com"]
[Source "ChessBase"]
[SourceQuality "1"]
[WhiteTeam "Silla"]
[BlackTeam "Extremadura"]
[TimeControl "5400+30"]

{[%evp 9,63,89,128,23,79,76,48,44,73,52,93,66,62,-60,-50,-55,-29,-85,-32,-30,-40,-36,11,0,18,-14,118,0,21,35,22,45,56,73,581,570,903,903,1100,626,624,604,1042,984,1196,1202,1332,1270,29988,29989,29989,29990,29990,29991,29991,29992]} 1. d4 {[%emt 0:02:51]} Nf6 {[%emt 0:00:11]} 2. c4 {[%emt 0:00:17]} c5 {[%emt 0:00:23]} 3. d5 {[%emt 0:00:26]} e6 {[%emt 0:00:11]} 4. Nc3 {[%emt 0:00:31]} exd5 {[%emt 0:00:08]} 5. cxd5 {[%emt 0:00:06]} d6 {[%emt 0:00:06]} 6. Qb3 {[%emt 0:02:26]} (6. e4 $16) 6... a6 {[%emt 0:05:35] Fout (0.6)} (6... g6 $11) 7. a4 $1 $16 {[%emt 0:00:35] Sterk} g6 {[%emt 0:00:31] OK} 8. Nf3 {[%emt 0:04:52] OK. Wit staat iets beter.} Bg7 {[%emt 0:00:10] Onnauwkeurig} 9. Nd2 {[%emt 0:01:56] OK} Ng4 {[%emt 0:18:44] Onnauwkeurig} 10. Nc4 {[%emt 0:10:03]} Ne5 {[%emt 0:00:28] OK} {Beter is} 11. Bf4 {[%emt 0:12:16] Fout (1.2)} (11. Nb6 $14 c4 12. Nxc4 (12. Qb4 Nbc6 $15)) 11... Nxc4 $15 {[%emt 0:05:39] Beste (Gemakkelijk)} 12. Qxc4 {[%emt 0:00:13]} O-O {[%emt 0:00:36] Beste (Gemakkelijk)} 13. a5 {[%emt 0:06:09] blijft gelijk. Fout (0.6)} (13. Qd3 $11) {Zwart zou moeten spelen} 13... Re8 {[%emt 0:11:11] Fout (0.5)} (13... b5 $17 14. axb6 Qxb6) 14. e3 {[%emt 0:06:57] OK} b5 {[%emt 0:20:00] OK} 15. axb6 {[%emt 0:04:32] Beste (Gemakkelijk)} g5 {[%emt 0:01:27] is het overwegen waard. Fout (0.5)} (15... Qxb6 $15 16. Qa4 Nd7) 16. Bg3 {[%emt 0:01:26]} Qxb6 {[%emt 0:00:05] Beste (Gemakkelijk)} 17. Ra2 {[%emt 0:05:58] [#] Onnauwkeurig} (17. Qa4 $5 Bd7 18. Qc2 $11) 17... Nc6 {[%emt 0:01:42] [#] Houdt de partij in balans. Fout (1.3)} 18. Qa4 $1 $16 {[%emt 0:08:46] Sterk} (18. dxc6 Be6 19. Qd3 (19. Rxa6 $2 Rxa6 20. Qxa6 Qxb2 $19) 19... Bxc3+ (19... Qxc6 $2 20. Ra3 $18) (19... Bxa2 20. Nxa2 Qa5+ 21. Nc3 $17) 20. Qxc3 Bxa2 $17) 18... Bf5 $1 {[%emt 0:20:31] ...Bxc3+ is de sterke dreiging. Sterk} 19. dxc6 {[%emt 0:04:45] Beste (Gemakkelijk)} Bxc3+ {[%emt 0:00:04] OK} 20. bxc3 {[%emt 0:00:07]} Qb1+ {[%emt 0:00:02] Beste (Gemakkelijk)} 21. Kd2 {[%emt 0:00:13] Beste (Gemakkelijk)} Re4 $2 {[%emt 0:00:56][%mdl 8192] Blijft standvastig. Dit kost Zwart de partij. Verliest partij (5.1)} (21... Rab8 $16 22. c7 (22. Qxa6 $2 {te hebberig.} Rb2+ 23. Rxb2 Qxb2+ 24. Ke1 Qxc3+ 25. Ke2 Rb8 $19) 22... Rb2+ 23. Rxb2 Qxb2+ 24. Kd1 (24. Ke1 Bd7 $11) 24... Qb1+ 25. Ke2 Bd7) 22. Qa3 $18 {[%emt 0:02:36] OK} (22. Qc2 Rd4+ 23. cxd4 Bxc2 24. Rxc2 Qb4+ 25. Ke2 cxd4 $16) 22... Rb8 {[%emt 0:00:44] Onnauwkeurig} 23. c7 {[%emt 0:05:01] OK} (23. Qxa6 $2 {slaat de verkeerde figuur.} Rb2+ 24. Rxb2 Qxb2+ 25. Kd1 Qb3+ 26. Kd2 Ra4 $19) 23... Rb3 {[%emt 0:02:51]} 24. c8=Q+ {[%emt 0:00:39]} ({Sterker dan} 24. Qxa6 Rb2+ 25. Rxb2 Qxb2+ 26. Kd1 Rd4+ 27. exd4 (27. cxd4 Bc2+ 28. Ke2 Be4+ 29. Kd1 Qb1+ 30. Ke2 Qb2+ 31. Ke1 Qc3+ 32. Kd1 Qc2+ 33. Ke1 Qb1+ 34. Ke2 Qc2+ 35. Ke1 Qc3+ 36. Ke2 Qc2+ 37. Ke1 $11) 27... Qc2+ 28. Ke1 Qxc3+ 29. Kd1 (29. Ke2 Qc2+ 30. Ke1 Qb1+ 31. Ke2 Qc2+ 32. Ke1 Qb1+ 33. Kd2 Qc2+ 34. Ke1 $11) 29... Qb3+ 30. Ke2 Qc2+ 31. Ke1 Qb1+ 32. Kd2 Qb2+ 33. Ke3 Qxd4+ 34. Ke2 Qe4+ 35. Kd2 Qb4+ 36. Kd1 Qb3+ 37. Ke2 Qc2+ 38. Ke1 (38. Ke3 Qe4+ 39. Kd2 Qc2+ 40. Ke3 Qe4+ 41. Kd2 $11) 38... Qc3+ 39. Ke2 Qc2+ 40. Ke3 Qc1+ 41. Ke2 (41. Kf3 g4+ 42. Ke2 Qc2+ 43. Ke1 Qc1+ 44. Ke2 Qc2+ 45. Ke1 Qc3+ 46. Kd1 Qc2+ 47. Ke1 $11) 41... Qc2+ $11) 24... Bxc8 {[%emt 0:01:29] [#]} 25. Bd3 $1 {[%emt 0:00:17]} Qxh1 {[%emt 0:01:42]} (25... Rxa3 26. Bxb1) 26. Qxb3 {[%emt 0:00:20]} Re8 {[%emt 0:00:02]} 27. Qa4 {[%emt 0:02:36]} Rd8 {[%emt 0:00:38]} 28. Qe4 {[%emt 0:00:28]} Be6 {[%emt 0:00:26]} 29. Qxh7+ {[%emt 0:00:40] Wit zet mat.} Kf8 {[%emt 0:00:01]} 30. Qh6+ {[%emt 0:02:14]} Ke8 {[%emt 0:00:02]} 31. Rxa6 {[%emt 0:02:00]} c4 {[%emt 0:02:30] [#]} 32. Ra7 $1 {[%emt 0:00:49] Blunder waarde: Wit=0.60/Zwart=1.39.  Verliest partij:   	---       	Zwart=1      Fout:        	Wit=2      	Zwart=4      Onnauwkeurig:    	Wit=1      	Zwart=3      OK:         	Wit=5      	Zwart=4      Beste:        	Wit=3      	Zwart=4      Sterk:        	Wit=2      	Zwart=1} 1-0

[Event "ESP-ch Teams Honor 2024"]
[Site "Melilla"]
[Date "2024.10.16"]
[Round "5.5"]
[White "Khademalsharieh, Sarasadat"]
[Black "Trigo Urquijo, Sergio"]
[Result "1/2-1/2"]
[ECO "A14"]
[WhiteElo "2478"]
[BlackElo "2384"]
[Annotator "RC"]
[PlyCount "61"]
[EventDate "2024.10.11"]
[EventType "team-tourn"]
[EventCountry "ESP"]
[SourceTitle "playchess.com"]
[Source "ChessBase"]
[SourceQuality "1"]
[WhiteTeam "Silla"]
[BlackTeam "Sestao"]
[TimeControl "5400+30"]

1. c4 {[%emt 0:00:05]} e6 {[%emt 0:02:42]} 2. g3 {[%emt 0:00:20]} d5 {[%emt 0:01:33]} 3. Bg2 {[%emt 0:01:38]} Nf6 {[%emt 0:01:50]} 4. Nf3 {[%emt 0:00:05]} Be7 {[%emt 0:01:40]} 5. O-O {[%emt 0:02:29]} O-O {[%emt 0:01:13]} 6. b3 {[%emt 0:00:58]} c5 {[%emt 0:06:55]} 7. cxd5 {[%emt 0:02:47]} Nxd5 {[%emt 0:02:07]} 8. Bb2 {[%emt 0:01:48]} Nc6 {[%emt 0:09:32]} 9. Nc3 {[%emt 0:07:02]} Bf6 {[%emt 0:03:20]} 10. Qb1 {[%emt 0:06:01]} b6 {[%emt 0:05:47]} 11. h4 {[%emt 0:06:45]} h6 {[%emt 0:04:58]} 12. Nxd5 {[%emt 0:12:49]} exd5 {[%emt 0:02:08]} 13. d4 {[%emt 0:00:11]} cxd4 {[%emt 0:04:07]} 14. Qd3 {[%emt 0:04:51]} a5 {[%emt 0:05:39]} 15. Nxd4 {[%emt 0:11:07]} Bxd4 {[%emt 0:03:39]} 16. Bxd4 {[%emt 0:00:17]} Ba6 {[%emt 0:00:12]} 17. Qd2 {[%emt 0:00:09]} Nxd4 {[%emt 0:00:42]} 18. Qxd4 {[%emt 0:00:05]} Bxe2 {[%emt 0:03:22]} 19. Rfe1 {[%emt 0:00:37]} Ba6 {[%emt 0:00:52]} 20. Bxd5 {[%emt 0:04:09]} Bb7 {[%emt 0:03:56]} 21. Re5 {[%emt 0:00:46]} Qc7 {[%emt 0:03:50]} 22. Bxb7 {[%emt 0:01:49]} Qxb7 {[%emt 0:00:07]} 23. Rb5 {[%emt 0:01:11]} Rab8 {[%emt 0:00:21]} 24. Rd1 {[%emt 0:03:20]} Rfe8 {[%emt 0:02:14]} 25. Rd5 {[%emt 0:01:23]} Re2 {[%emt 0:03:53]} 26. a4 {[%emt 0:06:57]} Rbe8 {[%emt 0:03:14]} 27. Qc3 {[%emt 0:02:08]} Re1+ {[%emt 0:02:27]} 28. Rxe1 {[%emt 0:00:19]} Rxe1+ {[%emt 0:00:09]} 29. Qxe1 {[%emt 0:00:04]} Qxd5 {[%emt 0:00:07]} 30. Qe8+ {[%emt 0:00:18]} Kh7 {[%emt 0:00:09]} 31. Qe3 {[%emt 0:00:11]} 1/2-1/2

[Event "ESP-ch Teams Honor 2024"]
[Site "Melilla"]
[Date "2024.10.16"]
[Round "5.8"]
[White "Santos Latasa, Jaime"]
[Black "Van Foreest, Jorden"]
[Result "1/2-1/2"]
[ECO "D10"]
[WhiteElo "2621"]
[BlackElo "2697"]
[Annotator "TA"]
[PlyCount "70"]
[EventDate "2024.10.11"]
[EventType "team-tourn"]
[EventCountry "ESP"]
[SourceTitle "playchess.com"]
[Source "ChessBase"]
[SourceQuality "1"]
[WhiteTeam "Extremadura"]
[BlackTeam "Andreu"]
[TimeControl "5400+30"]

{[%evp 13,70,23,12,8,8,8,22,22,23,23,27,7,0,23,18,20,42,41,35,50,37,24,37,35,32,35,47,41,42,44,94,89,99,109,145,60,50,67,0,0,0,0,0,0,0,0,0,0,0,0,0,0,0,0,0,0,0,0,0]} 1. d4 {[%emt 0:00:02]} d5 {[%emt 0:00:15]} 2. c4 {[%emt 0:00:15]} c6 {[%emt 0:00:08]} 3. cxd5 {[%emt 0:01:01]} cxd5 {[%emt 0:00:08]} 4. Nc3 {[%emt 0:00:04]} Nf6 {[%emt 0:00:14]} 5. Bf4 {[%emt 0:00:48]} Nc6 {[%emt 0:00:19]} 6. e3 {[%emt 0:00:07]} Bf5 {[%emt 0:01:16]} 7. Qb3 {[%emt 0:01:27]} Na5 {[%emt 0:00:07]} 8. Qa4+ {[%emt 0:00:14]} Bd7 {[%emt 0:00:22]} 9. Qc2 {[%emt 0:00:04] With the idea Nb5.} e6 {[%emt 0:02:03]} 10. Nf3 {[%emt 0:01:41]} Bb4 {[%emt 0:02:22]} 11. Bd3 {[%emt 0:00:38] Repels Ne4} Rc8 {[%emt 0:04:21][%cal Of6e4]} 12. O-O {[%emt 0:03:49]} Nh5 {[%emt 0:03:30]} 13. Bg5 {[%emt 0:03:29]} (13. Bxh7 Nxf4 14. exf4 Nc4 $17) 13... f6 {[%emt 0:04:54] [#]} 14. Bxh7 $1 {[%emt 0:02:44] Black must now prevent Ne5.} fxg5 {[%emt 0:10:10]} (14... Bxc3 15. bxc3) 15. Qg6+ {[%emt 0:01:02]} Kf8 $1 {[%emt 0:00:38]} 16. Qxh5 {[%emt 0:00:07]} Be8 {[%emt 0:04:20]} 17. Qg4 $36 {[%emt 0:00:43][%mdl 2048] White has good play.} (17. Qxg5 $2 Rxh7 18. Ne2 Rh6 $19 (18... Qxg5 19. Nxg5 Rh6 20. Nf4 $19)) (17. Qh3 Bxc3 (17... g4 18. Qxg4 Rxh7 19. Ng5 $11) 18. bxc3 Qe7 $17) 17... Rxh7 {[%emt 0:00:20]} 18. Nxg5 {[%emt 0:00:07]} (18. Qxe6 $2 Bxc3 19. Rfc1 Rh6 20. Qf5+ Rf6 $19) 18... Rh6 {[%emt 0:00:32] Hoping for ...Kg8.} 19. Nxe6+ {[%emt 0:00:13]} Rxe6 {[%emt 0:00:05]} 20. Qxe6 {[%emt 0:00:04]} Bf7 {[%emt 0:02:29]} 21. Qf5 {[%emt 0:03:27]} Bxc3 {[%emt 0:04:01]} (21... Rc6 $14) 22. Rac1 {[%emt 0:05:32]} ({Much weaker is} 22. bxc3 $6 Nc4 $11) 22... g6 {[%emt 0:00:19]} 23. Qh3 {[%emt 0:03:03]} Kg7 {[%emt 0:00:06][%cal Oc8c6] [#]} 24. Rxc3 {[%emt 0:03:32]} ({Don't take} 24. bxc3 Nc4 $14) (24. f4 $1 $16) 24... Rxc3 $14 {[%emt 0:00:05]} 25. bxc3 {[%emt 0:00:07]} Nc4 {[%emt 0:00:03]} 26. Qg4 {[%emt 0:03:26] The position is equal.} Qa5 $1 {[%emt 0:00:33][%csl LRa2,LRc3]} 27. h4 {[%emt 0:00:17]} Qxa2 {[%emt 0:01:29]} 28. h5 {[%emt 0:00:43] Strongly threatening Qg5.} Qc2 {[%emt 0:00:48][%cal Oc2f5]} 29. hxg6 {[%emt 0:03:00]} Qxg6 {[%emt 0:00:21]} 30. Qf4 {[%emt 0:00:20]} a5 {[%emt 0:05:16]} 31. f3 {[%emt 0:02:48]} a4 {[%emt 0:07:22]} 32. Kf2 {[%emt 0:07:20]} a3 {[%emt 0:02:49]} 33. Rh1 {[%emt 0:00:44]} Qc2+ {[%emt 0:03:50]} 34. Kg3 {[%emt 0:00:06] Intending Qh6+ and mate. Chess con chili.} Qg6+ {[%emt 0:00:05]} ({Stronger than} 34... Qxc3 35. Qh6+ Kg8 36. Qh8#) 35. Kf2 {[%emt 0:00:02]} Qc2+ {[%emt 0:00:26] Weighted Error Value: White=0.03 (flawless) /Black=0.06 (flawless) .  Mistake:       	White=1     	Black=1      Inaccurate:     	---       	Black=1      OK:         	White=11    	Black=13     Best:        	White=5     	Black=4      Strong:       	---       	Black=2} 1/2-1/2

[Event "ESP-ch Teams Honor 2024"]
[Site "Melilla"]
[Date "2024.10.16"]
[Round "5.11"]
[White "Macias Pino, Diego"]
[Black "Garrido Outon, Alex"]
[Result "1-0"]
[ECO "D30"]
[WhiteElo "2479"]
[BlackElo "2448"]
[Annotator "RC"]
[PlyCount "45"]
[EventDate "2024.10.11"]
[EventType "team-tourn"]
[EventCountry "ESP"]
[SourceTitle "playchess.com"]
[Source "ChessBase"]
[SourceQuality "1"]
[WhiteTeam "Andreu"]
[BlackTeam "Extremadura"]
[TimeControl "5400+30"]

1. d4 {[%emt 0:00:18]} d5 {[%emt 0:00:13]} 2. c4 {[%emt 0:00:06]} e6 {[%emt 0:00:07]} 3. Nf3 {[%emt 0:00:05]} a6 {[%emt 0:00:10]} 4. cxd5 {[%emt 0:03:25]} exd5 {[%emt 0:00:11]} 5. Nc3 {[%emt 0:00:05]} Nf6 {[%emt 0:04:22]} 6. Bg5 {[%emt 0:01:16]} Be6 {[%emt 0:00:06]} 7. e3 {[%emt 0:01:05]} Nbd7 {[%emt 0:00:33]} 8. Bd3 {[%emt 0:02:32]} Bd6 {[%emt 0:05:36]} 9. Rc1 {[%emt 0:05:19]} O-O {[%emt 0:03:41]} 10. O-O {[%emt 0:02:54]} c6 {[%emt 0:00:26]} 11. h3 {[%emt 0:00:28]} Qb8 {[%emt 0:16:18]} 12. Bh4 {[%emt 0:04:21]} h6 {[%emt 0:02:21]} 13. Qe1 {[%emt 0:00:12]} Re8 {[%emt 0:03:28]} 14. Nd2 {[%emt 0:03:07]} c5 {[%emt 0:11:09]} 15. Ne2 {[%emt 0:07:09]} cxd4 {[%emt 0:16:24]} 16. Nxd4 {[%emt 0:06:13]} Bh2+ {[%emt 0:06:06]} 17. Kh1 {[%emt 0:00:06]} g5 {[%emt 0:00:04]} 18. f4 {[%emt 0:02:39]} Bxh3 {[%emt 0:02:10]} 19. gxh3 {[%emt 0:05:07]} Bxf4 {[%emt 0:00:09]} 20. Rxf4 {[%emt 0:06:11]} gxf4 {[%emt 0:00:03]} 21. Nf5 {[%emt 0:01:03]} Kh8 {[%emt 0:00:34]} 22. Bxf6+ {[%emt 0:02:38]} Nxf6 {[%emt 0:00:03]} 23. Qh4 {[%emt 0:00:04]} 1-0

[Event "ESP-ch Teams Honor 2024"]
[Site "Melilla"]
[Date "2024.10.16"]
[Round "5.13"]
[White "Aravindh, Chithambaram VR."]
[Black "Pranav, V."]
[Result "1/2-1/2"]
[ECO "E35"]
[WhiteElo "2698"]
[BlackElo "2609"]
[Annotator "TA"]
[PlyCount "60"]
[EventDate "2024.10.11"]
[EventType "team-tourn"]
[EventCountry "ESP"]
[SourceTitle "playchess.com"]
[Source "ChessBase"]
[SourceQuality "1"]
[WhiteTeam "Solvay"]
[BlackTeam "Benalmadena"]
[TimeControl "5400+30"]

{[%evp 9,60,28,20,0,0,0,5,-2,15,10,1,0,0,0,15,16,0,0,8,0,0,0,0,0,0,0,0,0,0,0,0,0,0,0,0,0,0,0,0,0,0,0,0,0,0,0,0,0,0,0,0,0,0]} 1. d4 {[%emt 0:00:15]} Nf6 {[%emt 0:00:07]} 2. c4 {[%emt 0:00:08]} e6 {[%emt 0:00:06]} 3. Nc3 {[%emt 0:00:11]} Bb4 {[%emt 0:00:07]} 4. Qc2 {[%emt 0:00:10]} d5 {[%emt 0:00:10]} 5. cxd5 {[%emt 0:00:10]} exd5 {[%emt 0:00:08]} 6. Bf4 {[%emt 0:00:07] The position is equal.} c5 {[%emt 0:01:41]} 7. dxc5 {[%emt 0:00:15]} Nc6 {[%emt 0:01:47][%cal Od8a5]} 8. e3 {[%emt 0:00:53][%cal Be2e3,Be3d4][%mdl 32]} O-O {[%emt 0:00:50]} 9. Nf3 {[%emt 0:00:38]} d4 {[%emt 0:00:33]} 10. O-O-O {[%emt 0:00:43][%cal Rf3d4]} Bxc5 {[%emt 0:00:18]} 11. exd4 {[%emt 0:00:29]} Bd6 {[%emt 0:00:08]} 12. Bxd6 {[%emt 0:00:43]} Qxd6 {[%emt 0:00:06]} 13. a3 {[%emt 0:00:14] Wards off Nb4} Be6 {[%emt 0:01:49]} 14. Kb1 {[%emt 0:12:36][%cal Od4d5] [#] aiming for d5!} Na5 {[%emt 0:01:34]} 15. d5 {[%emt 0:12:05]} Nxd5 {[%emt 0:01:17]} 16. Nxd5 {[%emt 0:30:28]} Bxd5 {[%emt 0:00:09]} 17. Bd3 {[%emt 0:00:05]} (17. Ng5 $5 g6 $8 18. Ne4 (18. Qd2 Rfd8 $15) 18... Bxe4 19. Rxd6 Bxc2+ 20. Kxc2 $17) 17... g6 {[%emt 0:09:50] [#] Threatens to win with ...Bb3.} 18. Be4 {[%emt 0:00:44]} Bxe4 {[%emt 0:00:10]} 19. Rxd6 {[%emt 0:00:08]} Bxc2+ {[%emt 0:00:06]} 20. Kxc2 {[%emt 0:00:03]} Rac8+ {[%emt 0:00:20]} 21. Kb1 {[%emt 0:00:12]} Rfe8 {[%emt 0:00:30]} 22. Re1 {[%emt 0:02:20]} Rxe1+ {[%emt 0:00:32]} 23. Nxe1 $11 {[%emt 0:00:06][%mdl 4096] Endgame. KRN-KRN} Kf8 {[%emt 0:00:54]} 24. Rd5 {[%emt 0:05:59]} Nc6 {[%emt 0:00:58]} 25. Rd7 {[%emt 0:02:57]} Re8 {[%emt 0:00:38]} 26. Nf3 {[%emt 0:00:15]} Re7 {[%emt 0:00:20]} 27. Rd2 {[%emt 0:00:09]} h6 {[%emt 0:00:10]} 28. Kc2 {[%emt 0:00:15]} Ke8 {[%emt 0:00:05]} 29. b4 {[%emt 0:00:25]} Ne5 {[%emt 0:00:09]} 30. Nxe5 {[%emt 0:00:12]} Rxe5 {[%emt 0:00:04] Not much happened in this game.   Weighted Error Value: White=0.01 (flawless) /Black=0.00 (flawless) .  OK:         	White=14    	Black=13     Best:        	White=3     	Black=1} 1/2-1/2

[Event "ESP-ch Teams Honor 2024"]
[Site "Melilla"]
[Date "2024.10.16"]
[Round "5.16"]
[White "Ladron De Guevara Pinto, Paolo"]
[Black "Korneev, Oleg"]
[Result "1/2-1/2"]
[ECO "D43"]
[WhiteElo "2388"]
[BlackElo "2454"]
[Annotator "ChessBase"]
[PlyCount "68"]
[EventDate "2024.10.11"]
[EventType "team-tourn"]
[EventCountry "ESP"]
[SourceTitle "playchess.com"]
[Source "ChessBase"]
[SourceQuality "1"]
[WhiteTeam "Benalmadena"]
[BlackTeam "Solvay"]
[TimeControl "5400+30"]

1. d4 {[%emt 0:00:05]} d5 {[%emt 0:00:05]} 2. c4 {[%emt 0:00:10]} e6 {[%emt 0:01:04]} 3. Nc3 {[%emt 0:00:21]} c6 {[%emt 0:00:05]} 4. Nf3 {[%emt 0:00:26]} Nf6 {[%emt 0:00:04]} 5. Qc2 {[%emt 0:00:18]} Nbd7 {[%emt 0:01:42]} 6. e4 {[%emt 0:00:54]} dxe4 {[%emt 0:00:09]} 7. Nxe4 {[%emt 0:00:08]} Nxe4 {[%emt 0:00:03]} 8. Qxe4 {[%emt 0:00:08]} Bb4+ {[%emt 0:00:01]} 9. Bd2 {[%emt 0:00:22]} Bxd2+ {[%emt 0:06:05]} 10. Nxd2 {[%emt 0:00:16]} c5 {[%emt 0:04:00]} 11. dxc5 {[%emt 0:22:08]} Qa5 {[%emt 0:17:19]} 12. Qe3 {[%emt 0:24:02]} Qxc5 {[%emt 0:03:12]} 13. Qxc5 {[%emt 0:01:50]} Nxc5 {[%emt 0:00:16]} 14. b4 {[%emt 0:11:08]} Nd7 {[%emt 0:00:05]} 15. Be2 {[%emt 0:04:36]} b6 {[%emt 0:20:55]} 16. Bf3 {[%emt 0:06:02]} Rb8 {[%emt 0:00:06]} 17. a3 {[%emt 0:08:04]} Ke7 {[%emt 0:00:35]} 18. Rc1 {[%emt 0:01:31]} Rd8 {[%emt 0:15:10]} 19. Rc3 {[%emt 0:01:26]} Ne5 {[%emt 0:04:39]} 20. Be2 {[%emt 0:00:37]} a5 {[%emt 0:01:30]} 21. Nf3 {[%emt 0:02:45]} axb4 {[%emt 0:04:04]} 22. axb4 {[%emt 0:00:04]} Nxf3+ {[%emt 0:07:18]} 23. Bxf3 {[%emt 0:00:05]} Bb7 {[%emt 0:00:29]} 24. Bxb7 {[%emt 0:01:47]} Rxb7 {[%emt 0:00:02]} 25. Ke2 {[%emt 0:00:32]} Ra7 {[%emt 0:04:12]} 26. Rc2 {[%emt 0:00:03]} Rd4 {[%emt 0:01:03]} 27. Rd1 {[%emt 0:04:30]} Rxd1 {[%emt 0:00:24]} 28. Kxd1 {[%emt 0:00:04]} Ra4 {[%emt 0:03:17]} 29. Rb2 {[%emt 0:00:24]} Kd6 {[%emt 0:01:12]} 30. Kc2 Ra3 {[%emt 0:00:22]} 31. Rb3 {[%emt 0:04:57]} Ra2+ 32. Rb2 {[%emt 0:00:04]} Ra3 {[%emt 0:00:24]} 33. Rb3 {[%emt 0:00:03]} Ra2+ 34. Rb2 {[%emt 0:00:04]} Ke5 1/2-1/2

[Event "ESP-ch Teams Honor 2024"]
[Site "Melilla"]
[Date "2024.10.16"]
[Round "5.20"]
[White "Vallejo Pons, Francisco"]
[Black "Deac, Bogdan-Daniel"]
[Result "1/2-1/2"]
[ECO "C47"]
[WhiteElo "2653"]
[BlackElo "2691"]
[Annotator "TA"]
[PlyCount "82"]
[EventDate "2024.10.11"]
[EventType "team-tourn"]
[EventCountry "ESP"]
[SourceTitle "playchess.com"]
[Source "ChessBase"]
[SourceQuality "1"]
[WhiteTeam "Casablanca"]
[BlackTeam "Costa Calida"]
[TimeControl "5400+30"]

{[%evp 10,82,-5,0,0,0,0,0,0,0,0,0,0,-2,0,0,0,0,0,0,0,0,7,0,0,0,0,0,0,0,0,0,0,0,0,0,0,0,0,0,0,0,0,0,0,0,0,0,0,0,0,0,0,0,0,0,0,0,0,0,0,0,0,0,0,0,0,0,0,0,0,0,0,0,0]} 1. e4 {[%emt 0:00:22]} e5 {[%emt 0:00:02]} 2. Nf3 {[%emt 0:00:06]} Nc6 {[%emt 0:00:06]} 3. Nc3 Nf6 {[%emt 0:00:05]} 4. a3 {[%emt 0:00:11]} d5 {[%emt 0:03:27]} 5. Bb5 {[%emt 0:01:03]} Nxe4 {[%emt 0:00:27]} 6. Qe2 {[%emt 0:00:34] C47: Scotch Four Knights and Four Knights with 4 g3.} Qd6 {[%emt 0:04:46]} 7. Nxe4 {[%emt 0:00:19]} dxe4 {[%emt 0:00:04]} 8. Qxe4 {[%emt 0:00:05]} Bd7 $1 {[%emt 0:00:08]} 9. d4 {[%emt 0:00:17]} O-O-O {[%emt 0:00:24]} 10. dxe5 {[%emt 0:00:51]} (10. Nxe5 $2 {loses.} Nxe5 11. Bxd7+ (11. dxe5 $2 {gets mated.} Qd1+ 12. Kxd1 Bg4+ 13. Ke1 Rd1#) 11... Nxd7 $19) 10... Nxe5 {[%emt 0:00:18]} 11. Bxd7+ {[%emt 0:00:28]} Qxd7 {[%emt 0:03:56]} 12. Be3 {[%emt 0:05:25]} Ng4 {[%emt 0:04:06]} 13. O-O {[%emt 0:00:09]} Re8 $146 {[%emt 0:01:13]} ({Predecessor:} 13... Nxe3 14. Qxe3 Kb8 15. Rfe1 Bd6 16. c4 Rhe8 17. Qc3 Bf8 18. h3 f6 19. c5 g6 {1-0 Nezad,H (2328)-Setyaki,A (2398) Asian Games Hangzhou rapid 2023 (4)}) 14. Qd4 {[%emt 0:00:36]} Qxd4 {[%emt 0:07:36]} 15. Bxd4 {[%emt 0:00:08]} f6 {[%emt 0:00:14]} 16. Rfe1 {[%emt 0:01:28]} (16. Bxa7 $2 b6 17. b4 Ne5 $19) 16... Bd6 {[%emt 0:00:59]} 17. h3 {[%emt 0:00:27]} Nh6 {[%emt 0:00:34]} 18. Kf1 {[%emt 0:00:43]} (18. Bxa7 $2 b6 19. Red1 Nf7 $17 (19... Kb7 $2 20. Bxb6 Kxb6 21. c4 $19)) 18... Nf5 {[%emt 0:01:24]} 19. Bc3 {[%emt 0:02:52]} (19. Bxa7 $2 {is the wrong capture.} b6 20. g4 Rxe1+ 21. Rxe1 Ne7 $19) 19... h5 {[%emt 0:00:33]} 20. Nd4 {[%emt 0:01:48]} Nxd4 {[%emt 0:01:13]} 21. Bxd4 {[%emt 0:00:06]} b6 {[%emt 0:04:15]} 22. Rxe8+ {[%emt 0:03:31]} Rxe8 {[%emt 0:00:02]} 23. Re1 {[%emt 0:00:31]} Rxe1+ {[%emt 0:08:31]} 24. Kxe1 {[%emt 0:00:17]} Kd7 {[%emt 0:00:15]} 25. Ke2 {[%emt 0:03:41]} Ke6 {[%emt 0:01:04]} 26. Be3 {[%emt 0:02:04]} a6 {[%emt 0:05:27]} 27. a4 {[%emt 0:01:03]} b5 {[%emt 0:00:06]} 28. axb5 {[%emt 0:00:03]} axb5 {[%emt 0:00:04]} 29. g4 {[%emt 0:06:17]} hxg4 {[%emt 0:00:09]} 30. hxg4 {[%emt 0:00:02]} c5 {[%emt 0:07:22]} 31. b3 {[%emt 0:01:03]} Kd5 {[%emt 0:05:10]} 32. Kd3 {[%emt 0:01:05]} c4+ {[%emt 0:00:09]} 33. bxc4+ {[%emt 0:00:02]} bxc4+ {[%emt 0:00:08]} 34. Ke2 {[%emt 0:00:03]} g6 {[%emt 0:01:45]} 35. f3 {[%emt 0:00:31]} Be5 {[%emt 0:01:21]} 36. Bb6 $1 {[%emt 0:01:17]} Bf4 {[%emt 0:00:40]} 37. Bd8 {[%emt 0:00:40]} f5 {[%emt 0:00:09]} 38. gxf5 {[%emt 0:00:04]} gxf5 {[%emt 0:00:05]} 39. Bb6 {[%emt 0:02:10]} Bg5 {[%emt 0:00:30]} 40. Bf2 {[%emt 0:00:21]} Bf4 {[%emt 0:00:05]} 41. Bg1 {[%emt 0:00:04]} Bg5 {[%emt 0:00:05]} 1/2-1/2

[Event "ESP-ch Teams Honor 2024"]
[Site "Melilla"]
[Date "2024.10.16"]
[Round "5.21"]
[White "Ibarra Jerez, Jose Carlos"]
[Black "Salgado Lopez, Ivan"]
[Result "1/2-1/2"]
[ECO "C65"]
[WhiteElo "2559"]
[BlackElo "2609"]
[Annotator "RC"]
[PlyCount "35"]
[EventDate "2024.10.11"]
[EventType "team-tourn"]
[EventCountry "ESP"]
[SourceTitle "playchess.com"]
[Source "ChessBase"]
[SourceQuality "1"]
[WhiteTeam "Costa Calida"]
[BlackTeam "Casablanca"]
[TimeControl "5400+30"]

1. e4 {[%emt 0:00:30]} e5 {[%emt 0:00:21]} 2. Nf3 {[%emt 0:00:20]} Nc6 {[%emt 0:00:16]} 3. Bb5 {[%emt 0:00:24]} Nf6 {[%emt 0:00:18]} 4. d3 {[%emt 0:00:39]} Bc5 {[%emt 0:00:44]} 5. Nbd2 {[%emt 0:02:12]} O-O {[%emt 0:02:04]} 6. Bxc6 {[%emt 0:01:17]} bxc6 {[%emt 0:07:07]} 7. Nxe5 {[%emt 0:08:34]} Re8 {[%emt 0:00:21]} 8. Nef3 {[%emt 0:00:52]} d5 {[%emt 0:00:13]} 9. O-O {[%emt 0:02:35]} Bg4 {[%emt 0:00:16]} 10. h3 {[%emt 0:02:08]} Bh5 {[%emt 0:00:25]} 11. e5 {[%emt 0:04:03]} Rxe5 {[%emt 0:01:06]} 12. g4 {[%emt 0:04:12]} Nxg4 {[%emt 0:00:24]} 13. Nxe5 {[%emt 0:01:04]} Qh4 {[%emt 0:00:21]} 14. hxg4 {[%emt 0:01:10]} Qg3+ {[%emt 0:00:19]} 15. Kh1 {[%emt 0:00:09]} Qh3+ {[%emt 0:00:09]} 16. Kg1 {[%emt 0:00:08]} Qg3+ {[%emt 0:00:09]} 17. Kh1 {[%emt 0:00:07]} Qh3+ {[%emt 0:00:09]} 18. Kg1 {[%emt 0:00:05]} 1/2-1/2